bitfinex/quotes_SOLUSD_20250219
["timestamp","ask_amount","ask_price","bid_price","bid_amount"]
[1740007438576,0.03,169.38,169.34,151.65474886]
[1740007438779,0.03,169.38,169.36,19.64964886]
[1740007438982,0.03,169.41,169.4,21.0]
[1740007439188,0.03,169.41,169.4,138.11435988]
[1740007439608,9.13178785,169.51,169.45,1.0]
[1740007439767,9.13178785,169.51,169.46,22.42471102]
[1740007439964,9.13178785,169.51,169.48,18.64964886]
[1740007440194,9.13178785,169.51,169.5,18.64964886]
[1740007440383,9.13178785,169.51,169.5,145.74964886]
[1740007441682,16.76471102,169.53,169.5,145.74964886]
[1740007441864,16.76471102,169.53,169.5,127.1]
[1740007442068,16.76471102,169.52,169.5,127.1]
[1740007445673,16.76471102,169.51,169.5,127.1]
[1740007446090,16.76471102,169.52,169.5,127.1]
[1740007450576,16.76471102,169.53,169.5,127.1]
[1740007451476,18.38941102,169.6,169.5,127.1]
[1740007451477,24.36399283,169.68,169.67,1.0]
[1740007451673,60.5944584,169.72,169.7,1.0]
[1740007451905,26.91057796,169.72,169.71,17.76471102]
[1740007452199,6.84108733,169.73,169.72,20.64964886]
[1740007452490,16.76471102,169.83,169.73,19.64964886]
[1740007452695,16.76471102,169.83,169.73,5.12]
[1740007452696,48.56858237,169.74,169.73,5.12]
[1740007452868,48.56858237,169.74,169.72,31.82407497]
[1740007453078,1.5720492,169.74,169.72,6.14]
[1740007453271,4.92e-05,169.74,169.73,2.0]
[1740007453472,4.92e-05,169.74,169.73,20.64964886]
[1740007453787,26.68407497,169.86,169.77,20.0]
[1740007454092,26.68407497,169.8,169.78,5.22]
[1740007454272,26.68407497,169.82,169.75,26.68407497]
[1740007454477,26.68407497,169.82,169.76,18.86939866]
[1740007454678,26.68407497,169.82,169.77,0.21973685]
[1740007454882,26.68407497,169.82,169.77,0.21972391]
[1740007455080,26.68407497,169.83,169.82,2.0]
[1740007455282,26.68407497,169.83,169.82,1.0]
[1740007456295,26.68407497,169.83,169.82,2.0]
[1740007457303,26.68407497,169.85,169.84,1.0]
[1740007457610,26.68407497,169.85,169.84,2.0]
[1740007458480,26.68407497,169.85,169.84,1.0]
[1740007458903,26.68407497,169.85,169.82,1.0]
[1740007458904,32.57157497,169.85,169.82,1.0]
[1740007459204,5.8875,169.85,169.83,1.0]
[1740007459593,5.8861,169.89,169.85,1.0]
[1740007459905,26.68407497,169.86,169.85,1.0]
[1740007460496,32.57127497,169.86,169.85,1.0]
[1740007462505,26.68407497,169.86,169.85,1.0]
[1740007463211,32.57127497,169.86,169.85,1.0]
[1740007463412,26.68407497,169.86,169.85,1.0]
[1740007463790,32.57127497,169.86,169.85,1.0]
[1740007464004,26.68407497,169.86,169.85,1.0]
[1740007464210,32.57127497,169.86,169.85,1.0]
[1740007465910,26.68407497,169.86,169.85,1.0]
[1740007467926,26.68407497,169.86,169.85,2.0]
[1740007472319,26.71407497,169.86,169.85,2.0]
[1740007472725,16.70077425,169.86,169.85,2.0]
[1740007473952,22.58797425,169.86,169.85,1.0]
[1740007474235,16.70077425,169.86,169.85,1.0]
[1740007474613,16.70077425,169.86,169.85,2.0]
[1740007474931,16.70077425,169.86,169.85,1.0]
[1740007475441,22.58797425,169.86,169.84,1.0]
[1740007475614,16.67077425,169.85,169.84,1.0]
[1740007476406,16.67077425,169.85,169.84,2.0]
[1740007476608,16.67077425,169.85,169.84,1.0]
[1740007477211,22.55827425,169.85,169.84,1.0]
[1740007480740,39.2290485,169.85,169.83,0.063]
[1740007480941,33.3415485,169.84,169.83,0.063]
[1740007481240,83.0,169.83,169.75,1.0]
[1740007481446,16.67077425,169.76,169.75,2.0]
[1740007481841,16.67077425,169.76,169.75,1.0]
[1740007483250,16.67077425,169.76,169.75,2.0]
[1740007484931,16.67077425,169.76,169.75,2.063]
[1740007486943,97.7219,169.82,169.76,2.0]
[1740007486944,83.0,169.82,169.76,2.0]
[1740007487153,16.67077425,169.84,169.8,1.0]
[1740007487839,5.8884,169.83,169.8,1.0]
[1740007488346,16.67077425,169.81,169.8,1.0]
[1740007488727,22.55967425,169.81,169.8,1.0]
[1740007495546,22.55967425,169.81,169.76,85.62]
[1740007495547,22.55967425,169.81,169.77,1.0]
[1740007495728,22.55967425,169.81,169.76,1.0]
[1740007495729,16.67077425,169.78,169.76,1.0]
[1740007495929,16.67077425,169.77,169.76,1.0]
[1740007496128,16.67077425,169.77,169.76,2.0]
[1740007496339,16.67077425,169.78,169.77,1.0]
[1740007497931,16.67077425,169.78,169.76,2.0]
[1740007499264,5.8897,169.79,169.76,2.0]
[1740007499435,16.67077425,169.78,169.76,2.0]
[1740007499760,16.67077425,169.77,169.76,2.0]
[1740007500136,16.67077425,169.77,169.75,2.063]
[1740007500336,16.67077425,169.76,169.75,1.063]
[1740007500745,10.68089811,169.76,169.75,1.063]
[1740007501044,10.68089811,169.76,169.75,0.063]
[1740007501242,10.68089811,169.76,169.74,2.0]
[1740007501243,20.0,169.73,169.63,0.063]
[1740007501431,10.68089811,169.67,169.63,0.063]
[1740007501633,10.68089811,169.64,169.63,1.063]
[1740007501834,9.89479085,169.73,169.63,1.063]
[1740007501835,97.7291,169.74,169.67,2.0]
[1740007502051,5.8917,169.73,169.67,2.0]
[1740007502254,5.8917,169.73,169.68,1.0]
[1740007502554,5.8917,169.73,169.69,1.0]
[1740007503151,10.68089811,169.7,169.69,2.0]
[1740007503455,5.8896,169.79,169.76,1.0]
[1740007503644,10.68089811,169.77,169.76,1.0]
[1740007504033,16.57119811,169.77,169.73,1.0]
[1740007504248,10.68089811,169.74,169.71,1.0]
[1740007504434,10.68089811,169.72,169.71,1.0]
[1740007504635,16.69736611,169.72,169.71,2.0]
[1740007505361,16.69736611,169.72,169.71,1.0]
[1740007505560,16.69736611,169.72,169.7,2.0]
[1740007505757,16.69736611,169.71,169.7,2.0]
[1740007506256,16.69736611,169.72,169.71,1.0]
[1740007506442,16.69736611,169.72,169.71,2.0]
[1740007506959,16.69736611,169.75,169.72,1.0]
[1740007507155,16.69736611,169.76,169.75,1.0]
[1740007507333,16.69736611,169.76,169.75,2.0]
[1740007509353,16.69736611,169.76,169.75,1.0]
[1740007511265,16.69736611,169.76,169.75,2.0]
[1740007511436,16.69736611,169.76,169.75,1.0]
[1740007511635,22.58796611,169.76,169.71,1.0]
[1740007511858,16.69736611,169.72,169.69,86.66]
[1740007512165,16.69736611,169.7,169.69,5.96]
[1740007512461,16.69736611,169.7,169.69,4.96]
[1740007512665,16.69736611,169.7,169.69,6.96]
[1740007513080,16.69736611,169.7,169.69,2.0]
[1740007514265,16.69736611,169.8,169.79,1.0]
[1740007514446,16.69736611,169.81,169.79,2.0]
[1740007514641,5.9182,169.83,169.8,1.0]
[1740007514845,16.69736611,169.81,169.78,4.98]
[1740007515156,16.69736611,169.79,169.76,6.98]
[1740007515361,16.69736611,169.79,169.77,2.0]
[1740007515538,16.69736611,169.8,169.77,2.0]
[1740007515742,16.69736611,169.82,169.81,1.0]
[1740007516347,16.69736611,169.82,169.81,2.0]
[1740007516546,16.72736611,169.83,169.82,1.0]
[1740007516854,0.03,169.83,169.82,6.98]
[1740007517246,0.03,169.83,169.82,104.37736611]
[1740007517952,0.03,169.83,169.82,87.68]
[1740007518647,16.72736611,169.83,169.75,1.0]
[1740007518979,33.39473222,169.76,169.71,2.0]
[1740007519144,16.69736611,169.72,169.68,1.0]
[1740007519348,16.69736611,169.69,169.68,1.0]
[1740007519644,18.28216611,169.76,169.69,2.0]
[1740007519645,16.69736611,169.71,169.69,2.0]
[1740007519851,16.69736611,169.72,169.71,2.0]
[1740007520463,16.69736611,169.72,169.71,1.0]
[1740007520667,16.69736611,169.72,169.71,2.0]
[1740007521674,16.69736611,169.72,169.71,1.0]
[1740007522085,16.69736611,169.72,169.7,1.0]
[1740007522383,16.69736611,169.71,169.7,1.0]
[1740007522690,26.71807138,169.71,169.7,2.0]
[1740007522875,26.71807138,169.72,169.7,2.0]
[1740007523051,26.71807138,169.72,169.71,1.0]
[1740007523244,26.71807138,169.73,169.71,2.0]
[1740007523449,6.5377,169.78,169.68,5.8933]
[1740007523450,26.71807138,169.74,169.73,2.0]
[1740007524087,26.71807138,169.75,169.74,1.0]
[1740007524257,26.71807138,169.75,169.74,2.0]
[1740007524961,26.71807138,169.78,169.76,1.0]
[1740007525289,26.71807138,169.81,169.79,1.0]
[1740007525496,26.71807138,169.81,169.79,2.0]
[1740007525867,26.71807138,169.81,169.8,1.0]
[1740007526592,26.71807138,169.81,169.8,2.0]
[1740007526762,26.71807138,169.82,169.8,2.0]
[1740007527261,26.71807138,169.82,169.81,1.0]
[1740007527581,26.71807138,169.82,169.78,1.0]
[1740007527878,5.9183,169.83,169.75,82.7]
[1740007527879,26.71807138,169.79,169.75,82.7]
[1740007528071,5.9183,169.83,169.74,1.0]
[1740007528072,26.71807138,169.76,169.74,1.0]
[1740007528258,26.71807138,169.75,169.74,1.0]
[1740007528461,5.8896,169.8,169.77,1.0]
[1740007529384,26.71807138,169.78,169.77,1.0]
[1740007529573,26.71807138,169.78,169.76,1.0]
[1740007529772,26.71807138,169.77,169.76,1.0]
[1740007530487,26.71807138,169.77,169.75,2.0]
[1740007530688,26.71807138,169.76,169.74,2.0]
[1740007530889,26.71807138,169.75,169.74,2.0]
[1740007531787,26.71807138,169.75,169.74,1.0]
[1740007532088,26.71807138,169.75,169.74,2.0]
[1740007532290,26.71807138,169.75,169.72,1.0]
[1740007532591,26.71807138,169.73,169.71,82.7]
[1740007532885,26.71807138,169.72,169.71,82.7]
[1740007533089,26.71807138,169.73,169.72,1.0]
[1740007533796,26.71807138,169.75,169.72,2.0]
[1740007534289,26.71807138,169.75,169.74,1.0]
[1740007534490,26.21807138,169.75,169.74,1.0]
[1740007534692,5.89,169.78,169.74,2.0]
[1740007534879,26.71807138,169.75,169.73,2.0]
[1740007535086,26.71807138,169.74,169.73,2.0]
[1740007535370,26.71807138,169.74,169.73,1.0]
[1740007535576,26.71807138,169.74,169.73,2.0]
[1740007536471,26.71807138,169.74,169.72,1.0]
[1740007536675,26.71807138,169.73,169.72,1.0]
[1740007537670,26.71807138,169.73,169.72,2.0]
[1740007538262,26.71807138,169.73,169.72,1.0]
[1740007539076,32.60977138,169.73,169.72,1.0]
[1740007539394,26.71807138,169.73,169.72,1.0]
[1740007540095,32.60977138,169.73,169.69,2.0]
[1740007540393,26.71807138,169.7,169.69,2.0]
[1740007540618,26.71807138,169.7,169.69,1.0]
[1740007540909,26.71807138,169.7,169.69,2.0]
[1740007541193,26.71807138,169.7,169.68,1.0]
[1740007541389,26.71807138,169.69,169.66,2.063]
[1740007541575,26.71807138,169.68,169.66,2.063]
[1740007542202,26.71807138,169.68,169.67,1.0]
[1740007542401,26.71807138,169.68,169.67,2.0]
[1740007542788,26.71807138,169.7,169.69,1.0]
[1740007543091,109.71807138,169.74,169.72,2.0]
[1740007543286,26.71807138,169.74,169.73,1.0]
[1740007543781,32.60937138,169.74,169.72,1.0]
[1740007544004,26.71807138,169.73,169.72,1.0]
[1740007544182,26.71807138,169.75,169.73,1.0]
[1740007544389,26.71807138,169.75,169.74,1.0]
[1740007545090,26.71807138,169.75,169.72,1.0]
[1740007545294,26.71807138,169.73,169.72,1.0]
[1740007545889,26.71807138,169.73,169.72,2.0]
[1740007546095,26.71807138,169.75,169.74,1.0]
[1740007546507,1.5606,169.8,169.75,1.0]
[1740007546508,26.71807138,169.76,169.75,1.0]
[1740007546797,26.71807138,169.77,169.76,2.0]
[1740007546971,26.71807138,169.78,169.76,2.0]
[1740007547298,26.71807138,169.77,169.75,1.0]
[1740007547605,26.71807138,169.76,169.75,1.0]
[1740007547812,26.71807138,169.76,169.72,81.7]
[1740007547813,26.71807138,169.76,169.72,2.0]
[1740007548017,26.71807138,169.74,169.72,2.0]
[1740007548399,26.71807138,169.73,169.72,1.0]
[1740007549112,26.71807138,169.73,169.69,85.66]
[1740007549113,26.71807138,169.74,169.73,2.0]
[1740007550417,26.71807138,169.74,169.73,1.0]
[1740007550622,26.71807138,169.74,169.73,2.0]
[1740007552689,16.69255729,169.74,169.73,2.0]
[1740007553008,16.69255729,169.76,169.74,1.0]
[1740007553310,16.69255729,169.75,169.73,2.0]
[1740007553493,16.69255729,169.74,169.72,1.0]
[1740007553698,16.69255729,169.73,169.72,1.0]
[1740007553899,16.69255729,169.75,169.73,2.0]
[1740007554707,16.69255729,169.74,169.72,2.0]
[1740007554907,16.69255729,169.73,169.72,2.0]
[1740007559036,16.69255729,169.74,169.73,1.0]
[1740007561608,16.69255729,169.74,169.72,0.063]
[1740007561824,16.69255729,169.73,169.72,0.063]
[1740007562511,16.69255729,169.68,169.66,0.063]
[1740007562707,16.69255729,169.67,169.66,0.063]
[1740007565427,22.58625729,169.67,169.66,0.063]
[1740007569539,16.69255729,169.67,169.66,0.063]
[1740007569841,16.69255729,169.67,169.66,1.063]
[1740007570003,16.69255729,169.67,169.66,0.063]
[1740007570204,16.69255729,169.7,169.68,2.0]
[1740007570400,16.69255729,169.7,169.69,1.0]
[1740007570602,16.69255729,169.71,169.7,1.0]
[1740007571826,5.9221,169.72,169.7,1.0]
[1740007571827,0.03,169.72,169.7,1.0]
[1740007572027,0.03,169.72,169.71,1.0]
[1740007572215,0.03,169.72,169.71,2.0]
[1740007572408,0.03,169.72,169.71,82.7]
[1740007575113,0.03,169.72,169.71,105.28495729]
[1740007575726,0.03,169.72,169.71,99.39255729]
[1740007576310,0.03,169.72,169.71,82.7]
[1740007576623,16.72255729,169.72,169.71,2.0]
[1740007579915,0.03,169.72,169.71,7.8924]
[1740007580332,0.03,169.72,169.71,105.28495729]
[1740007580736,0.03,169.72,169.71,123.93460615]
[1740007583238,0.03,169.72,169.71,130.14980615]
[1740007585233,0.03,169.72,169.71,157.90015729]
[1740007585435,0.03,169.72,169.71,140.1152]
[1740007585732,0.03,169.72,169.71,146.0076]
[1740007586128,16.72255729,169.72,169.71,2.0]
[1740007586440,0.03,169.72,169.71,2.0]
[1740007587141,0.03,169.72,169.71,88.5924]
[1740007587350,0.03,169.72,169.71,105.28495729]
[1740007588621,0.03,169.72,169.71,88.5924]
[1740007588937,0.03,169.72,169.71,82.7]
[1740007590330,0.03,169.72,169.71,88.5924]
[1740007590528,0.03,169.72,169.71,82.7]
[1740007591346,0.03,169.72,169.71,88.5924]
[1740007595540,0.03,169.72,169.71,105.28495729]
[1740007595935,0.03,169.72,169.71,105.34795729]
[1740007596240,0.03,169.72,169.71,88.6554]
[1740007597022,0.03,169.76,169.75,20.64964886]
[1740007597223,0.03,169.76,169.75,169.30220615]
[1740007599244,0.03,169.76,169.75,175.19320615]
[1740007600743,0.03,169.76,169.75,178.1793496]
[1740007602648,0.0001,169.76,169.75,204.70100689]
[1740007603035,0.0001,169.76,169.75,187.0084496]
[1740007604233,0.0001,169.76,169.75,186.0084496]
[1740007604555,0.0001,169.76,169.75,188.0084496]
[1740007604730,0.0001,169.76,169.75,187.0084496]
[1740007605725,0.0001,169.76,169.75,186.0084496]
[1740007606561,0.0001,169.76,169.75,187.0084496]
[1740007606752,0.0001,169.76,169.75,188.0084496]
[1740007606956,0.0001,169.76,169.75,186.0084496]
[1740007607141,0.0001,169.76,169.75,187.0084496]
[1740007607341,0.0001,169.76,169.75,188.0084496]
[1740007609143,0.0001,169.76,169.75,137.97714345]
[1740007609344,0.0001,169.76,169.75,139.791]
[1740007609561,0.0001,169.76,169.75,93.391]
[1740007609941,0.0001,169.76,169.75,82.7]
[1740007610155,16.69265729,169.76,169.75,87.5]
[1740007611438,16.69265729,169.76,169.75,6.8]
[1740007612144,0.0001,169.76,169.75,6.8]
[1740007612657,16.69265729,169.76,169.75,6.8]
[1740007615540,0.0001,169.76,169.75,6.8]
[1740007617567,16.69265729,169.76,169.75,6.8]
[1740007618757,0.0001,169.76,169.75,6.8]
[1740007620060,0.0001,169.76,169.75,6.863]
[1740007620865,16.69265729,169.76,169.75,6.863]
[1740007622239,0.0001,169.76,169.75,6.863]
[1740007623171,16.69265729,169.76,169.75,6.863]
[1740007625249,0.0001,169.76,169.75,6.863]
[1740007626371,16.69265729,169.76,169.75,6.863]
[1740007626581,16.69265729,169.76,169.75,2.063]
[1740007627068,0.0001,169.76,169.75,2.063]
[1740007628260,16.69265729,169.76,169.75,1.063]
[1740007628464,33.38521458,169.76,169.75,0.063]
[1740007628665,55.08154655,169.76,169.75,0.063]
[1740007629681,89.0386,169.75,169.71,0.063]
[1740007629857,10.68578931,169.72,169.71,0.063]
[1740007630556,16.7071443,169.72,169.71,0.063]
[1740007631582,1.5516,169.71,169.66,0.063]
[1740007631766,16.7071443,169.67,169.66,0.063]
[1740007633276,22.6008443,169.67,169.66,0.063]
[1740007634160,28.7033443,169.67,169.66,0.063]
[1740007635480,111.7033443,169.67,169.66,0.063]
[1740007636862,94.9962,169.67,169.66,0.063]
[1740007637183,111.7033443,169.67,169.66,0.063]
[1740007641069,18.3540443,169.64,169.63,0.063]
[1740007641377,18.3540443,169.64,169.58,0.063]
[1740007641599,16.7071443,169.59,169.58,0.063]
[1740007643173,83.0,169.63,169.59,2.0]
[1740007643377,31.4412443,169.68,169.62,1.0]
[1740007643378,22.6015443,169.65,169.62,1.0]
[1740007643688,16.7071443,169.63,169.62,1.0]
[1740007644470,16.7071443,169.64,169.62,1.0]
[1740007645391,16.7071443,169.64,169.63,1.0]
[1740007646366,5.8951,169.63,169.58,80.763]
[1740007646572,16.7071443,169.59,169.58,0.063]
[1740007646978,16.7071443,169.59,169.58,1.063]
[1740007647282,16.7071443,169.59,169.58,0.063]
[1740007648786,22.6036443,169.59,169.58,0.063]
[1740007649382,89.5634,169.63,169.58,0.063]
[1740007649587,16.7071443,169.6,169.59,1.0]
[1740007650171,16.7071443,169.6,169.58,0.063]
[1740007650376,16.7071443,169.59,169.58,0.063]
[1740007652108,22.6036443,169.59,169.58,0.063]
[1740007653386,16.7071443,169.59,169.58,0.063]
[1740007654303,22.6036443,169.59,169.58,0.063]
[1740007655606,16.7071443,169.59,169.58,0.063]
[1740007658607,10.70379227,169.59,169.58,0.063]
[1740007662303,10.70379227,169.59,169.58,1.063]
[1740007663202,5.8963,169.6,169.58,1.063]
[1740007663413,10.70379227,169.59,169.58,1.063]
[1740007663901,5.8963,169.6,169.58,0.063]
[1740007664126,10.70379227,169.59,169.58,1.063]
[1740007665507,5.9582,169.63,169.59,2.0]
[1740007665684,10.70379227,169.61,169.59,2.0]
[1740007666288,10.70379227,169.6,169.59,1.0]
[1740007666709,10.70379227,169.6,169.59,2.0]
[1740007668499,10.70379227,169.6,169.58,2.063]
[1740007668699,10.70379227,169.59,169.58,2.063]
[1740007669104,5.8955,169.62,169.59,1.0]
[1740007669414,10.70379227,169.6,169.59,1.0]
[1740007670917,16.59999227,169.6,169.59,1.0]
[1740007671717,10.70379227,169.6,169.59,1.0]
[1740007673423,16.59999227,169.6,169.59,1.0]
[1740007673715,10.70379227,169.6,169.59,1.0]
[1740007677192,5.8961,169.61,169.59,1.0]
[1740007677619,10.70379227,169.6,169.59,1.0]
[1740007677796,16.59999227,169.6,169.59,1.0]
[1740007678202,59.41516135,169.6,169.58,0.063]
[1740007678403,10.70379227,169.59,169.58,0.063]
[1740007679007,10.70379227,169.59,169.58,1.063]
[1740007679214,10.70379227,169.59,169.58,2.063]
[1740007679409,10.70379227,169.59,169.58,1.063]
[1740007679599,5.8962,169.6,169.58,2.063]
[1740007679805,10.70379227,169.59,169.58,2.063]
[1740007680415,10.70379227,169.59,169.58,1.063]
[1740007680600,16.60029227,169.59,169.58,0.063]
[1740007682723,10.70379227,169.59,169.58,0.063]
[1740007683313,16.60029227,169.59,169.58,0.063]
[1740007684822,10.70379227,169.59,169.58,0.063]
[1740007685004,16.60029227,169.59,169.58,0.063]
[1740007685932,16.60029227,169.59,169.54,0.063]
[1740007686117,10.70379227,169.55,169.54,0.063]
[1740007686634,16.60169227,169.55,169.54,0.063]
[1740007687505,78.06651021,169.55,169.49,1.063]
[1740007687700,10.70379227,169.5,169.49,0.063]
[1740007688215,29.35344113,169.5,169.49,0.063]
[1740007688435,35.25314113,169.5,169.49,0.063]
[1740007689201,83.0,169.49,169.43,1.0]
[1740007689522,10.70379227,169.44,169.41,1.063]
[1740007689826,10.70379227,169.42,169.41,2.063]
[1740007690025,83.0,169.47,169.43,1.0]
[1740007690346,10.70379227,169.45,169.44,2.0]
[1740007690823,10.70379227,169.5,169.49,1.0]
[1740007691002,10.70379227,169.5,169.49,2.0]
[1740007691208,10.70379227,169.51,169.49,2.0]
[1740007691735,10.70379227,169.51,169.5,1.0]
[1740007694014,10.70379227,169.51,169.5,2.0]
[1740007694434,5.8983,169.55,169.5,2.0]
[1740007694604,1.6134,169.58,169.55,1.0]
[1740007694805,5.8969,169.58,169.55,1.0]
[1740007695254,83.0,169.59,169.57,1.0]
[1740007695529,5.8963,169.6,169.58,1.0]
[1740007695705,10.70379227,169.59,169.58,1.0]
[1740007696035,10.70379227,169.59,169.58,2.0]
[1740007698620,16.72345262,169.59,169.58,2.0]
[1740007700631,16.72345262,169.6,169.59,1.0]
[1740007704420,16.78645262,169.6,169.59,1.0]
[1740007707830,0.063,169.6,169.59,172.00440148]
[1740007708344,0.063,169.6,169.59,173.00440148]
[1740007708534,0.063,169.6,169.59,172.00440148]
[1740007711035,0.0001,169.6,169.59,173.00440148]
[1740007711239,0.063,169.63,169.62,40.64964886]
[1740007711418,0.063,169.63,169.62,61.99310148]
[1740007712123,0.063,169.63,169.62,189.09310148]
[1740007712324,0.063,169.63,169.62,194.98860148]
[1740007713522,0.063,169.63,169.62,176.33895262]
[1740007713724,0.063,169.63,169.62,159.6155]
[1740007715621,0.063,169.63,169.62,113.2155]
[1740007717751,0.063,169.63,169.62,129.93895262]
[1740007719249,0.063,169.63,169.62,113.2155]
[1740007719845,0.063,169.63,169.62,113.1955]
[1740007720529,0.063,169.63,169.62,129.91895262]
[1740007720847,0.063,169.63,169.62,123.88578682]
[1740007722341,0.063,169.63,169.62,113.1955]
[1740007724130,10.75328682,169.63,169.62,87.28]
[1740007724330,10.75328682,169.63,169.62,82.7]
[1740007724663,10.75328682,169.63,169.62,87.28]
[1740007725148,0.063,169.63,169.62,87.28]
[1740007725862,0.063,169.63,169.62,93.1755]
[1740007726354,0.063,169.63,169.62,88.5955]
[1740007726555,10.75328682,169.63,169.62,1.0]
[1740007727335,10.75328682,169.63,169.6,1.03]
[1740007727557,10.69028682,169.61,169.6,0.03]
[1740007728064,53.4514341,169.61,169.6,0.03]
[1740007728538,59.3472341,169.61,169.6,0.03]
[1740007728738,59.3472341,169.61,169.56,1.0]
[1740007728934,10.69028682,169.57,169.54,1.0]
[1740007729137,10.69028682,169.55,169.53,6.58]
[1740007729455,10.69028682,169.54,169.53,6.58]
[1740007729763,10.69028682,169.54,169.53,2.0]
[1740007730644,16.7320047,169.54,169.53,2.0]
[1740007731134,83.0,169.6,169.59,1.0]
[1740007731334,16.7320047,169.6,169.59,1.0]
[1740007731955,33.4640094,169.6,169.55,2.0]
[1740007732129,16.7320047,169.56,169.55,2.0]
[1740007734556,16.7320047,169.56,169.55,1.0]
[1740007734931,16.7320047,169.56,169.53,87.28]
[1740007735255,16.7320047,169.54,169.53,87.28]
[1740007736233,16.7320047,169.55,169.54,2.0]
[1740007736557,16.7320047,169.56,169.55,2.0]
[1740007736761,83.0,169.55,169.54,1.0]
[1740007736965,99.7320047,169.55,169.54,1.0]
[1740007737470,99.7320047,169.55,169.49,0.03]
[1740007737471,116.4640094,169.55,169.49,0.03]
[1740007737633,16.7320047,169.5,169.49,0.03]
[1740007737838,16.7320047,169.5,169.49,1.03]
[1740007738564,16.7320047,169.5,169.49,2.03]
[1740007740771,22.6317047,169.5,169.49,1.03]
[1740007740933,22.6317047,169.5,169.49,0.03]
[1740007741636,16.7320047,169.5,169.49,0.03]
[1740007741866,22.6317047,169.5,169.49,1.03]
[1740007742238,22.6317047,169.5,169.49,0.03]
[1740007743345,22.6317047,169.5,169.49,1.03]
[1740007744370,22.6317047,169.5,169.49,0.03]
[1740007748167,56.03055356,169.5,169.43,2.03]
[1740007748354,83.0,169.49,169.45,1.0]
[1740007748543,83.0,169.49,169.46,1.0]
[1740007749453,16.7320047,169.47,169.46,1.0]
[1740007749962,22.6327047,169.47,169.44,1.0]
[1740007750146,16.7320047,169.45,169.44,2.0]
[1740007750556,16.7320047,169.45,169.44,1.0]
[1740007750757,16.7320047,169.45,169.44,2.0]
[1740007751150,16.7320047,169.45,169.44,1.0]
[1740007751536,22.6334047,169.45,169.44,1.0]
[1740007751744,22.6334047,169.45,169.43,1.03]
[1740007751943,16.7320047,169.44,169.43,1.03]
[1740007754219,16.7320047,169.44,169.43,2.03]
[1740007754657,10.72018162,169.44,169.43,2.03]
[1740007755246,10.72018162,169.44,169.43,1.03]
[1740007757079,5.9017,169.45,169.43,1.03]
[1740007757377,10.72018162,169.44,169.43,1.03]
[1740007758492,16.62188162,169.44,169.43,1.03]
[1740007759396,10.72018162,169.44,169.43,1.03]
[1740007759759,16.62188162,169.44,169.43,1.03]
[1740007761183,10.72018162,169.44,169.43,1.03]
[1740007761686,16.62188162,169.44,169.43,1.03]
[1740007763366,88.8994,169.51,169.46,1.0]
[1740007763677,88.8994,169.51,169.48,1.0]
[1740007764078,5.8991,169.52,169.48,1.0]
[1740007764283,10.72018162,169.5,169.49,2.0]
[1740007771786,16.61988162,169.5,169.47,1.0]
[1740007772085,10.72018162,169.48,169.46,1.0]
[1740007772290,5.8997,169.5,169.44,2.0]
[1740007772291,10.72018162,169.47,169.44,2.0]
[1740007772469,10.72018162,169.45,169.44,2.0]
[1740007773393,10.72018162,169.45,169.44,1.0]
[1740007774108,16.62158162,169.45,169.44,1.0]